[Event "January 2 Early 2024"]
[Site "https://www.chess.com"]
[Date "2024.01.02"]
[Round "1"]
[White "Grieve, Harry"]
[Black "Korol, Dimitry"]
[Result "1/2-1/2"]
[Board "189"]
[TimeControl "180+1"]
[WhiteFideId "426520"]
[BlackFideId "14108003"]
[WhiteElo "2662"]
[BlackElo "2322"]
[WhiteTeam "ENG"]
[BlackTeam "UKR"]
[WhiteClock "0:00:18"]
[BlackClock "0:00:03"]

1. e4 {[%clk 0:03:00]}  c5 {[%clk 0:03:00]} 2. Nc3 {[%clk 0:03:00]}  g6 {[%clk 0:02:59]} 3. d4 {[%clk 0:03:00]}  cxd4 {[%clk 0:02:59]} 4. Qxd4 {[%clk 0:03:01]}  Nf6 {[%clk 0:02:59]} 5. Be3 {[%clk 0:03:02]}  Nc6 {[%clk 0:02:59]} 6. Qd2 {[%clk 0:03:02]}  d6 {[%clk 0:02:58]} 7. f3 {[%clk 0:03:01]}  Bg7 {[%clk 0:02:59]} 8. O-O-O {[%clk 0:03:02]}  O-O {[%clk 0:02:58]} 9. Nge2 {[%clk 0:03:03]}  Qa5 {[%clk 0:02:25]} 10. Kb1 {[%clk 0:03:02]}  Bd7 {[%clk 0:02:20]} 11. Nd4 {[%clk 0:02:58]}  Rfc8 {[%clk 0:02:04]} 12. Be2 {[%clk 0:02:57]}  Ne5 {[%clk 0:02:00]} 13. g4 {[%clk 0:02:54]}  b5 {[%clk 0:01:56]} 14. g5 {[%clk 0:02:51]}  Nh5 {[%clk 0:01:55]} 15. Nd5 {[%clk 0:02:31]}  Qxd2 {[%clk 0:01:54]} 16. Rxd2 {[%clk 0:02:32]}  Kf8 {[%clk 0:01:53]} 17. b3 {[%clk 0:02:06]}  e6 {[%clk 0:01:21]} 18. Nb4 {[%clk 0:02:06]}  a5 {[%clk 0:01:20]} 19. Nd3 {[%clk 0:02:06]}  Rab8 {[%clk 0:00:58]} 20. Nf2 {[%clk 0:01:50]}  Rc3 {[%clk 0:00:43]} 21. Nd1 {[%clk 0:01:48]}  Rc7 {[%clk 0:00:11]} 22. f4 {[%clk 0:01:49]}  Nc4 {[%clk 0:00:11]} 23. bxc4 {[%clk 0:01:22]}  bxc4+ {[%clk 0:00:12]} 24. Kc1 {[%clk 0:01:22]}  Rcb7 {[%clk 0:00:09]} 25. Nc3 {[%clk 0:01:23]}  Ke7 {[%clk 0:00:09]} 26. Bxc4 {[%clk 0:01:17]}  Rc8 {[%clk 0:00:08]} 27. Ba6 {[%clk 0:01:15]}  Rxc3 {[%clk 0:00:08]} 28. Bxb7 {[%clk 0:01:15]}  Rxe3 {[%clk 0:00:08]} 29. f5 {[%clk 0:00:45]}  Be5 {[%clk 0:00:06]} 30. f6+ {[%clk 0:00:44]}  Kd8 {[%clk 0:00:05]} 31. Rhd1 {[%clk 0:00:31]}  Kc7 {[%clk 0:00:04]} 32. Ba6 {[%clk 0:00:31]}  Rxe4 {[%clk 0:00:04]} 33. Nf3 {[%clk 0:00:26]}  Bf4 {[%clk 0:00:04]} 34. Kb2 {[%clk 0:00:26]}  Bxd2 {[%clk 0:00:04]} 35. Rxd2 {[%clk 0:00:27]}  d5 {[%clk 0:00:05]} 36. Bd3 {[%clk 0:00:26]}  Re3 {[%clk 0:00:04]} 37. Nd4 {[%clk 0:00:26]}  Nf4 {[%clk 0:00:05]} 38. h4 {[%clk 0:00:23]}  e5 {[%clk 0:00:04]} 39. Nb3 {[%clk 0:00:21]}  a4 {[%clk 0:00:03]} 40. Nc5 {[%clk 0:00:20]}  Nxd3+ {[%clk 0:00:02]} 41. cxd3 {[%clk 0:00:20]}  Kd6 {[%clk 0:00:02]} 42. Nb7+ {[%clk 0:00:18]}  Kc7 {[%clk 0:00:02]} 43. Nc5 {[%clk 0:00:18]}  Kd6 {[%clk 0:00:02]} 44. Nb7+ {[%clk 0:00:19]}  Kc7 {[%clk 0:00:03]} 45. Nc5 {[%clk 0:00:18]} 1/2-1/2

[Event "January 2 Early 2024"]
[Site "https://www.chess.com"]
[Date "2024.01.02"]
[Round "1"]
[White "Ankerst, Mihael"]
[Black "Spata, German"]
[Result "0-1"]
[Board "192"]
[TimeControl "180+1"]
[WhiteFideId "14602369"]
[BlackFideId "113026"]
[WhiteElo "2317"]
[BlackElo "2659"]
[WhiteTeam "SLO"]
[BlackTeam "ARG"]
[WhiteClock "0:00:15"]
[BlackClock "0:00:08"]

1. e4 {[%clk 0:03:00]}  g6 {[%clk 0:02:51]} 2. d4 {[%clk 0:02:59]}  Bg7 {[%clk 0:02:48]} 3. Nc3 {[%clk 0:02:59]}  d6 {[%clk 0:02:39]} 4. f4 {[%clk 0:02:59]}  a6 {[%clk 0:02:40]} 5. Nf3 {[%clk 0:02:58]}  b5 {[%clk 0:02:39]} 6. Bd3 {[%clk 0:02:58]}  Bb7 {[%clk 0:02:38]} 7. Be3 {[%clk 0:02:56]}  Nd7 {[%clk 0:02:35]} 8. e5 {[%clk 0:02:57]}  Nh6 {[%clk 0:02:25]} 9. Ne4 {[%clk 0:02:56]}  O-O {[%clk 0:02:22]} 10. Qd2 {[%clk 0:02:52]}  c5 {[%clk 0:02:18]} 11. c3 {[%clk 0:02:50]}  cxd4 {[%clk 0:02:11]} 12. cxd4 {[%clk 0:02:50]}  Nb6 {[%clk 0:02:07]} 13. h3 {[%clk 0:02:46]}  Nc4 {[%clk 0:02:02]} 14. Qe2 {[%clk 0:02:35]}  Nxe3 {[%clk 0:01:59]} 15. Qxe3 {[%clk 0:02:36]}  Nf5 {[%clk 0:01:59]} 16. Qd2 {[%clk 0:02:13]}  dxe5 {[%clk 0:01:50]} 17. dxe5 {[%clk 0:02:11]}  Nd4 {[%clk 0:01:21]} 18. Nxd4 {[%clk 0:01:48]}  Qxd4 {[%clk 0:01:20]} 19. Qf2 {[%clk 0:01:49]}  Qxd3 {[%clk 0:01:10]} 20. Nc5 {[%clk 0:01:40]}  Qd5 {[%clk 0:01:06]} 21. Rd1 {[%clk 0:01:39]}  Qxg2 {[%clk 0:01:05]} 22. Qxg2 {[%clk 0:01:35]}  Bxg2 {[%clk 0:01:04]} 23. Rh2 {[%clk 0:01:36]}  Bc6 {[%clk 0:01:02]} 24. h4 {[%clk 0:01:28]}  Rfd8 {[%clk 0:00:54]} 25. Rxd8+ {[%clk 0:01:26]}  Rxd8 {[%clk 0:00:54]} 26. Nxa6 {[%clk 0:01:27]}  f6 {[%clk 0:00:48]} 27. exf6 {[%clk 0:01:24]}  Bxf6 {[%clk 0:00:47]} 28. h5 {[%clk 0:01:25]}  Be4 {[%clk 0:00:41]} 29. hxg6 {[%clk 0:01:19]}  hxg6 {[%clk 0:00:42]} 30. Nc5 {[%clk 0:00:50]}  Bf5 {[%clk 0:00:40]} 31. a3 {[%clk 0:00:42]}  Rd4 {[%clk 0:00:38]} 32. Rd2 {[%clk 0:00:26]}  Rxd2 {[%clk 0:00:33]} 33. Kxd2 {[%clk 0:00:26]}  Bxb2 {[%clk 0:00:32]} 34. a4 {[%clk 0:00:27]}  b4 {[%clk 0:00:17]} 35. a5 {[%clk 0:00:27]}  Bc3+ {[%clk 0:00:17]} 36. Ke3 {[%clk 0:00:24]}  e5 {[%clk 0:00:06]} 37. a6 {[%clk 0:00:14]}  Bd4+ {[%clk 0:00:06]} 38. Kf3 {[%clk 0:00:12]}  Bxc5 {[%clk 0:00:07]} 39. fxe5 {[%clk 0:00:13]}  b3 {[%clk 0:00:07]} 40. Kf4 {[%clk 0:00:10]}  b2 {[%clk 0:00:07]} 41. a7 {[%clk 0:00:11]}  Bxa7 {[%clk 0:00:07]} 42. Kg5 {[%clk 0:00:12]}  b1=Q {[%clk 0:00:07]} 43. Kf6 {[%clk 0:00:13]}  Qe4 {[%clk 0:00:06]} 44. Kg5 {[%clk 0:00:14]}  Qxe5 {[%clk 0:00:06]} 45. Kh6 {[%clk 0:00:15]}  Qg7+ {[%clk 0:00:07]} 46. Kg5 {[%clk 0:00:16]}  Be3+ {[%clk 0:00:07]} 47. Kh4 {[%clk 0:00:16]}  Qh6+ {[%clk 0:00:07]} 48. Kg3 {[%clk 0:00:16]}  Qf4+ {[%clk 0:00:08]} 49. Kg2 {[%clk 0:00:17]}  Be4+ {[%clk 0:00:08]} 50. Kh3 {[%clk 0:00:14]}  Qf3+ {[%clk 0:00:07]} 51. Kh4 {[%clk 0:00:15]}  Bf2+ {[%clk 0:00:07]} 52. Kg5 {[%clk 0:00:15]}  Qf5+ {[%clk 0:00:07]} 53. Kh6 {[%clk 0:00:15]}  Qh5# {[%clk 0:00:08]} 0-1

[Event "January 2 Early 2024"]
[Site "https://www.chess.com"]
[Date "2024.01.02"]
[Round "1"]
[White "Tan, Jun Ying"]
[Black "Kornyukov, Alexey"]
[Result "1-0"]
[Board "193"]
[TimeControl "180+1"]
[WhiteFideId "5710413"]
[BlackFideId "4150457"]
[WhiteElo "2658"]
[BlackElo "2317"]
[WhiteTeam "MAS"]
[BlackTeam "RUS"]
[WhiteClock "0:00:28"]
[BlackClock "0:00:17"]

1. d4 {[%clk 0:03:00]}  Nf6 {[%clk 0:02:53]} 2. c4 {[%clk 0:02:59]}  e6 {[%clk 0:02:53]} 3. Nc3 {[%clk 0:02:57]}  Bb4 {[%clk 0:02:53]} 4. e3 {[%clk 0:02:50]}  O-O {[%clk 0:02:51]} 5. Bd2 {[%clk 0:02:47]}  d5 {[%clk 0:02:49]} 6. Nf3 {[%clk 0:02:44]}  dxc4 {[%clk 0:02:49]} 7. Bxc4 {[%clk 0:02:43]}  c5 {[%clk 0:02:47]} 8. a3 {[%clk 0:02:41]}  Bxc3 {[%clk 0:02:40]} 9. Bxc3 {[%clk 0:02:39]}  cxd4 {[%clk 0:02:37]} 10. Nxd4 {[%clk 0:02:29]}  Nd5 {[%clk 0:02:30]} 11. Bd2 {[%clk 0:02:26]}  Qb6 {[%clk 0:02:27]} 12. O-O {[%clk 0:02:08]}  Nc6 {[%clk 0:02:26]} 13. Nxc6 {[%clk 0:02:05]}  bxc6 {[%clk 0:02:22]} 14. Qc2 {[%clk 0:01:59]}  Ba6 {[%clk 0:02:18]} 15. Bxa6 {[%clk 0:01:55]}  Qxa6 {[%clk 0:02:18]} 16. Rfc1 {[%clk 0:01:54]}  Rac8 {[%clk 0:02:02]} 17. e4 {[%clk 0:01:53]}  Nf6 {[%clk 0:01:53]} 18. Be3 {[%clk 0:01:52]}  Rfd8 {[%clk 0:01:49]} 19. Bg5 {[%clk 0:01:49]}  Qd3 {[%clk 0:01:48]} 20. e5 {[%clk 0:01:33]}  Qxc2 {[%clk 0:01:37]} 21. Rxc2 {[%clk 0:01:33]}  h6 {[%clk 0:01:36]} 22. Bxf6 {[%clk 0:01:33]}  gxf6 {[%clk 0:01:35]} 23. exf6 {[%clk 0:01:34]}  Kh7 {[%clk 0:01:33]} 24. Rac1 {[%clk 0:01:31]}  Kg6 {[%clk 0:01:29]} 25. Kf1 {[%clk 0:01:31]}  Rd6 {[%clk 0:01:05]} 26. b4 {[%clk 0:01:31]}  a6 {[%clk 0:01:02]} 27. a4 {[%clk 0:01:26]}  Rb8 {[%clk 0:00:30]} 28. Rxc6 {[%clk 0:01:25]}  Rxc6 {[%clk 0:00:29]} 29. Rxc6 {[%clk 0:01:26]}  Rxb4 {[%clk 0:00:29]} 30. Rxa6 {[%clk 0:01:24]}  Kxf6 {[%clk 0:00:29]} 31. g3 {[%clk 0:01:05]}  Kg5 {[%clk 0:00:27]} 32. Kg2 {[%clk 0:01:03]}  f5 {[%clk 0:00:27]} 33. Rxe6 {[%clk 0:00:42]}  Rxa4 {[%clk 0:00:26]} 34. h4+ {[%clk 0:00:35]}  Kh5 {[%clk 0:00:25]} 35. Rf6 {[%clk 0:00:35]}  Ra5 {[%clk 0:00:25]} 36. Kh3 {[%clk 0:00:34]}  Re5 {[%clk 0:00:21]} 37. Rxf5+ {[%clk 0:00:24]}  Rxf5 {[%clk 0:00:21]} 38. g4+ {[%clk 0:00:25]}  Kg6 {[%clk 0:00:21]} 39. gxf5+ {[%clk 0:00:25]}  Kxf5 {[%clk 0:00:21]} 40. Kg3 {[%clk 0:00:26]}  h5 {[%clk 0:00:20]} 41. Kf3 {[%clk 0:00:25]}  Ke5 {[%clk 0:00:20]} 42. Ke3 {[%clk 0:00:25]}  Kf5 {[%clk 0:00:20]} 43. f3 {[%clk 0:00:24]}  Ke5 {[%clk 0:00:20]} 44. f4+ {[%clk 0:00:25]}  Kf5 {[%clk 0:00:20]} 45. Kf3 {[%clk 0:00:25]}  Kf6 {[%clk 0:00:20]} 46. Ke4 {[%clk 0:00:26]}  Ke6 {[%clk 0:00:21]} 47. f5+ {[%clk 0:00:26]}  Kf6 {[%clk 0:00:20]} 48. Kf4 {[%clk 0:00:26]}  Kf7 {[%clk 0:00:19]} 49. Kg5 {[%clk 0:00:27]}  Ke7 {[%clk 0:00:19]} 50. Kxh5 {[%clk 0:00:27]}  Kf6 {[%clk 0:00:19]} 51. Kg4 {[%clk 0:00:27]}  Kg7 {[%clk 0:00:19]} 52. Kg5 {[%clk 0:00:28]}  Kh7 {[%clk 0:00:19]} 53. Kf6 {[%clk 0:00:28]}  Kh6 {[%clk 0:00:17]} 54. Ke7 {[%clk 0:00:28]} 1-0

[Event "January 2 Early 2024"]
[Site "https://www.chess.com"]
[Date "2024.01.02"]
[Round "1"]
[White "Pogorelskikh, Sofia"]
[Black "Iskusnyh, Sergei"]
[Result "0-1"]
[Board "194"]
[TimeControl "180+1"]
[WhiteFideId "44164548"]
[BlackFideId "4120027"]
[WhiteElo "2313"]
[BlackElo "2657"]
[WhiteTeam "SRB"]
[BlackTeam "RUS"]
[WhiteClock "0:00:00"]
[BlackClock "0:00:26"]

1. e4 {[%clk 0:03:00]}  e6 {[%clk 0:02:56]} 2. d4 {[%clk 0:02:59]}  d5 {[%clk 0:02:56]} 3. Nc3 {[%clk 0:02:55]}  Nf6 {[%clk 0:02:53]} 4. e5 {[%clk 0:02:50]}  Nfd7 {[%clk 0:02:53]} 5. f4 {[%clk 0:02:50]}  c5 {[%clk 0:02:53]} 6. Nf3 {[%clk 0:02:50]}  Nc6 {[%clk 0:02:54]} 7. Be3 {[%clk 0:02:50]}  Rb8 {[%clk 0:02:55]} 8. Qd2 {[%clk 0:02:41]}  Qa5 {[%clk 0:02:54]} 9. Nb5 {[%clk 0:01:53]}  Qxd2+ {[%clk 0:02:48]} 10. Kxd2 {[%clk 0:01:53]}  a6 {[%clk 0:02:31]} 11. Nd6+ {[%clk 0:01:35]}  Bxd6 {[%clk 0:02:30]} 12. exd6 {[%clk 0:01:36]}  c4 {[%clk 0:02:16]} 13. b3 {[%clk 0:01:30]}  b5 {[%clk 0:02:01]} 14. Ne5 {[%clk 0:01:26]}  Bb7 {[%clk 0:01:59]} 15. bxc4 {[%clk 0:01:19]}  dxc4 {[%clk 0:01:57]} 16. Be2 {[%clk 0:01:18]}  f6 {[%clk 0:01:39]} 17. Ng4 {[%clk 0:00:45]}  Nb6 {[%clk 0:01:38]} 18. Bf3 {[%clk 0:00:44]}  Kd7 {[%clk 0:01:37]} 19. f5 {[%clk 0:00:37]}  exf5 {[%clk 0:01:31]} 20. d5 {[%clk 0:00:34]}  Nxd5 {[%clk 0:01:06]} 21. Bxd5 {[%clk 0:00:28]}  fxg4 {[%clk 0:01:06]} 22. Bc5 {[%clk 0:00:25]}  Ne5 {[%clk 0:01:03]} 23. Bxb7 {[%clk 0:00:21]}  Rxb7 {[%clk 0:01:04]} 24. Rhe1 {[%clk 0:00:18]}  Re8 {[%clk 0:00:59]} 25. a4 {[%clk 0:00:09]}  Kc6 {[%clk 0:00:55]} 26. Bd4 {[%clk 0:00:07]}  b4 {[%clk 0:00:54]} 27. Bxe5 {[%clk 0:00:04]}  Rxe5 {[%clk 0:00:53]} 28. Rxe5 {[%clk 0:00:05]}  fxe5 {[%clk 0:00:54]} 29. Re1 {[%clk 0:00:05]}  Kxd6 {[%clk 0:00:54]} 30. Re4 {[%clk 0:00:05]}  b3 {[%clk 0:00:53]} 31. cxb3 {[%clk 0:00:04]}  cxb3 {[%clk 0:00:54]} 32. Kc1 {[%clk 0:00:03]}  Rc7+ {[%clk 0:00:52]} 33. Kb2 {[%clk 0:00:03]}  Rc2+ {[%clk 0:00:52]} 34. Kxb3 {[%clk 0:00:04]}  Rxg2 {[%clk 0:00:53]} 35. Rb4 {[%clk 0:00:03]}  h5 {[%clk 0:00:47]} 36. a5 {[%clk 0:00:03]}  Kd5 {[%clk 0:00:45]} 37. Rb6 {[%clk 0:00:02]}  Rxh2 {[%clk 0:00:44]} 38. Rxa6 {[%clk 0:00:03]}  g3 {[%clk 0:00:42]} 39. Rg6 {[%clk 0:00:03]}  g2 {[%clk 0:00:40]} 40. a6 {[%clk 0:00:03]}  Rh3+ {[%clk 0:00:40]} 41. Kb2 {[%clk 0:00:03]}  Rh4 {[%clk 0:00:33]} 42. Rxg2 {[%clk 0:00:02]}  Ra4 {[%clk 0:00:33]} 43. Rxg7 {[%clk 0:00:02]}  Rxa6 {[%clk 0:00:33]} 44. Rh7 {[%clk 0:00:02]}  Rc6 {[%clk 0:00:29]} 45. Rxh5 {[%clk 0:00:02]}  Kd4 {[%clk 0:00:29]} 46. Rh8 {[%clk 0:00:01]}  e4 {[%clk 0:00:29]} 47. Rd8+ {[%clk 0:00:01]}  Ke3 {[%clk 0:00:29]} 48. Re8 {[%clk 0:00:01]}  Kd3 {[%clk 0:00:29]} 49. Rd8+ {[%clk 0:00:01]}  Ke2 {[%clk 0:00:29]} 50. Re8 {[%clk 0:00:02]}  e3 {[%clk 0:00:30]} 51. Re7 {[%clk 0:00:02]}  Kd2 {[%clk 0:00:29]} 52. Rd7+ {[%clk 0:00:02]}  Ke1 {[%clk 0:00:29]} 53. Re7 {[%clk 0:00:02]}  e2 {[%clk 0:00:29]} 54. Re8 {[%clk 0:00:03]}  Rc4 {[%clk 0:00:29]} 55. Re7 {[%clk 0:00:03]}  Kd2 {[%clk 0:00:27]} 56. Kb3 {[%clk 0:00:03]}  Rc1 {[%clk 0:00:26]} 57. Rd7+ {[%clk 0:00:02]}  Ke3 {[%clk 0:00:26]} 58. Re7+ {[%clk 0:00:03]}  Kf3 {[%clk 0:00:26]} 59. Rf7+ {[%clk 0:00:03]}  Kg4 {[%clk 0:00:26]} 60. Rg7+ {[%clk 0:00:00]}  Kf5 {[%clk 0:00:26]} 0-1

[Event "January 2 Early 2024"]
[Site "https://www.chess.com"]
[Date "2024.01.02"]
[Round "1"]
[White "Piesik, Piotr"]
[Black "Gajwa Ankit"]
[Result "1-0"]
[Board "195"]
[TimeControl "180+1"]
[WhiteFideId "1136194"]
[BlackFideId "5077834"]
[WhiteElo "2655"]
[BlackElo "2312"]
[WhiteTeam "CZE"]
[BlackTeam "IND"]
[WhiteClock "0:01:19"]
[BlackClock "0:00:29"]

1. Nf3 {[%clk 0:02:56]}  Nf6 {[%clk 0:02:58]} 2. g3 {[%clk 0:02:57]}  g6 {[%clk 0:02:57]} 3. Bg2 {[%clk 0:02:57]}  Bg7 {[%clk 0:02:57]} 4. O-O {[%clk 0:02:58]}  O-O {[%clk 0:02:58]} 5. d4 {[%clk 0:02:58]}  d6 {[%clk 0:02:58]} 6. Nbd2 {[%clk 0:02:58]}  Nbd7 {[%clk 0:02:56]} 7. e4 {[%clk 0:02:58]}  e5 {[%clk 0:02:56]} 8. dxe5 {[%clk 0:02:59]}  Nxe5 {[%clk 0:02:55]} 9. Nxe5 {[%clk 0:02:59]}  dxe5 {[%clk 0:02:55]} 10. Qe2 {[%clk 0:03:00]}  c6 {[%clk 0:02:54]} 11. a4 {[%clk 0:02:59]}  a5 {[%clk 0:02:54]} 12. b3 {[%clk 0:02:57]}  Ne8 {[%clk 0:02:53]} 13. Ba3 {[%clk 0:02:57]}  Nd6 {[%clk 0:02:51]} 14. Nc4 {[%clk 0:02:57]}  Nxc4 {[%clk 0:02:47]} 15. Bxf8 {[%clk 0:02:57]}  Bxf8 {[%clk 0:02:43]} 16. Qxc4 {[%clk 0:02:57]}  Be6 {[%clk 0:02:43]} 17. Qe2 {[%clk 0:02:56]}  Bc5 {[%clk 0:02:42]} 18. Rad1 {[%clk 0:02:56]}  Qb6 {[%clk 0:02:38]} 19. Rd3 {[%clk 0:02:52]}  h5 {[%clk 0:02:38]} 20. Rfd1 {[%clk 0:02:48]}  h4 {[%clk 0:02:30]} 21. Bf3 {[%clk 0:02:45]}  hxg3 {[%clk 0:02:29]} 22. hxg3 {[%clk 0:02:46]}  Kg7 {[%clk 0:02:30]} 23. Bg4 {[%clk 0:02:27]}  Bxg4 {[%clk 0:02:10]} 24. Qxg4 {[%clk 0:02:28]}  Bxf2+ {[%clk 0:02:10]} 25. Kg2 {[%clk 0:02:28]}  Bd4 {[%clk 0:01:46]} 26. Rh1 {[%clk 0:02:17]}  Qc5 {[%clk 0:01:33]} 27. Rd2 {[%clk 0:02:05]}  Qc3 {[%clk 0:01:31]} 28. Re2 {[%clk 0:02:05]}  Rh8 {[%clk 0:01:02]} 29. Rxh8 {[%clk 0:02:04]}  Kxh8 {[%clk 0:01:02]} 30. Qf3 {[%clk 0:02:04]}  Qa1 {[%clk 0:00:55]} 31. Qf1 {[%clk 0:01:53]}  Kg7 {[%clk 0:00:48]} 32. Qxa1 {[%clk 0:01:52]}  Bxa1 {[%clk 0:00:49]} 33. g4 {[%clk 0:01:53]}  Bd4 {[%clk 0:00:46]} 34. Kf3 {[%clk 0:01:50]}  Kf6 {[%clk 0:00:45]} 35. Rh2 {[%clk 0:01:48]}  Ke6 {[%clk 0:00:44]} 36. g5 {[%clk 0:01:47]}  Bb2 {[%clk 0:00:43]} 37. Rh8 {[%clk 0:01:46]}  Bc1 {[%clk 0:00:42]} 38. Kg4 {[%clk 0:01:45]}  Be3 {[%clk 0:00:41]} 39. Re8+ {[%clk 0:01:25]}  Kd7 {[%clk 0:00:40]} 40. Rf8 {[%clk 0:01:25]}  Ke7 {[%clk 0:00:38]} 41. Rb8 {[%clk 0:01:25]}  b6 {[%clk 0:00:39]} 42. Rb7+ {[%clk 0:01:24]}  Ke6 {[%clk 0:00:38]} 43. Rc7 {[%clk 0:01:24]}  c5 {[%clk 0:00:37]} 44. Rc6+ {[%clk 0:01:21]}  Kd7 {[%clk 0:00:33]} 45. Rxb6 {[%clk 0:01:22]}  Bd4 {[%clk 0:00:29]} 46. Rb5 {[%clk 0:01:19]} 1-0

[Event "January 2 Early 2024"]
[Site "https://www.chess.com"]
[Date "2024.01.02"]
[Round "1"]
[White "Feuerstack, Aljoscha"]
[Black "Diaz, Fernando"]
[Result "1-0"]
[Board "197"]
[TimeControl "180+1"]
[WhiteFideId "4681932"]
[BlackFideId "3701255"]
[WhiteElo "2651"]
[BlackElo "2311"]
[WhiteTeam "GER"]
[BlackTeam "PAR"]
[WhiteClock "0:00:05"]
[BlackClock "0:00:00"]

1. e4 {[%clk 0:03:00]}  e6 {[%clk 0:03:00]} 2. Qe2 {[%clk 0:02:58]}  d5 {[%clk 0:03:01]} 3. exd5 {[%clk 0:02:58]}  Qxd5 {[%clk 0:03:01]} 4. Nc3 {[%clk 0:02:58]}  Qd8 {[%clk 0:03:02]} 5. g3 {[%clk 0:02:51]}  Nf6 {[%clk 0:03:01]} 6. Bg2 {[%clk 0:02:51]}  Be7 {[%clk 0:02:59]} 7. Nf3 {[%clk 0:02:51]}  O-O {[%clk 0:02:59]} 8. O-O {[%clk 0:02:51]}  Bd7 {[%clk 0:03:00]} 9. Ne5 {[%clk 0:02:50]}  Nc6 {[%clk 0:02:59]} 10. Nxd7 {[%clk 0:02:46]}  Qxd7 {[%clk 0:02:59]} 11. d3 {[%clk 0:02:46]}  Nd4 {[%clk 0:02:58]} 12. Qd1 {[%clk 0:02:46]}  c6 {[%clk 0:02:57]} 13. Be3 {[%clk 0:02:41]}  Rad8 {[%clk 0:02:56]} 14. Ne4 {[%clk 0:02:40]}  b6 {[%clk 0:02:48]} 15. Nxf6+ {[%clk 0:02:05]}  Bxf6 {[%clk 0:02:46]} 16. c3 {[%clk 0:01:42]}  Nf5 {[%clk 0:02:44]} 17. Bf4 {[%clk 0:01:42]}  Qxd3 {[%clk 0:02:28]} 18. Qxd3 {[%clk 0:01:43]}  Rxd3 {[%clk 0:02:28]} 19. Bxc6 {[%clk 0:01:44]}  Rfd8 {[%clk 0:02:21]} 20. Be4 {[%clk 0:01:33]}  R3d7 {[%clk 0:02:18]} 21. Bc6 {[%clk 0:01:33]}  Rd3 {[%clk 0:02:14]} 22. a4 {[%clk 0:01:30]}  h6 {[%clk 0:02:07]} 23. a5 {[%clk 0:01:28]}  g5 {[%clk 0:02:04]} 24. Bc7 {[%clk 0:01:27]}  Rc8 {[%clk 0:02:02]} 25. axb6 {[%clk 0:01:27]}  axb6 {[%clk 0:02:00]} 26. Ra7 {[%clk 0:01:16]}  Rd2 {[%clk 0:01:53]} 27. Rb1 {[%clk 0:01:16]}  Ne7 {[%clk 0:01:42]} 28. Ra8 {[%clk 0:00:45]}  Rxa8 {[%clk 0:01:36]} 29. Bxa8 {[%clk 0:00:46]}  Nc8 {[%clk 0:01:26]} 30. Bc6 {[%clk 0:00:23]}  Bd8 {[%clk 0:01:24]} 31. Be5 {[%clk 0:00:23]}  f6 {[%clk 0:01:21]} 32. Bd4 {[%clk 0:00:23]}  e5 {[%clk 0:01:11]} 33. Be3 {[%clk 0:00:24]}  Rd6 {[%clk 0:01:11]} 34. Be4 {[%clk 0:00:24]}  Ne7 {[%clk 0:01:07]} 35. Ra1 {[%clk 0:00:24]}  f5 {[%clk 0:01:06]} 36. Bc2 {[%clk 0:00:17]}  f4 {[%clk 0:00:58]} 37. gxf4 {[%clk 0:00:17]}  gxf4 {[%clk 0:00:59]} 38. Bc1 {[%clk 0:00:17]}  Kf7 {[%clk 0:00:56]} 39. Kf1 {[%clk 0:00:17]}  Kf6 {[%clk 0:00:48]} 40. Ke2 {[%clk 0:00:16]}  Nf5 {[%clk 0:00:46]} 41. b4 {[%clk 0:00:12]}  Ng7 {[%clk 0:00:40]} 42. Ra7 {[%clk 0:00:13]}  Ne6 {[%clk 0:00:37]} 43. Bb3 {[%clk 0:00:13]}  Ng5 {[%clk 0:00:35]} 44. Bb2 {[%clk 0:00:14]}  e4 {[%clk 0:00:33]} 45. c4+ {[%clk 0:00:14]}  Kf5 {[%clk 0:00:33]} 46. c5 {[%clk 0:00:14]}  bxc5 {[%clk 0:00:34]} 47. bxc5 {[%clk 0:00:15]}  Rc6 {[%clk 0:00:31]} 48. Ba3 {[%clk 0:00:15]}  Ne6 {[%clk 0:00:24]} 49. Rf7+ {[%clk 0:00:14]}  Bf6 {[%clk 0:00:20]} 50. Bd5 {[%clk 0:00:10]}  Ra6 {[%clk 0:00:18]} 51. Bb2 {[%clk 0:00:09]}  Ng5 {[%clk 0:00:16]} 52. Rf8 {[%clk 0:00:07]}  Ra5 {[%clk 0:00:12]} 53. Rxf6+ {[%clk 0:00:06]}  Kg4 {[%clk 0:00:13]} 54. Be6+ {[%clk 0:00:06]}  Kh4 {[%clk 0:00:12]} 55. c6 {[%clk 0:00:05]}  Rc5 {[%clk 0:00:11]} 56. Bb3 {[%clk 0:00:05]}  Rb5 {[%clk 0:00:09]} 57. Rxf4+ {[%clk 0:00:05]}  Kh3 {[%clk 0:00:00]} 58. c7 {[%clk 0:00:05]} 1-0

[Event "January 2 Early 2024"]
[Site "https://www.chess.com"]
[Date "2024.01.02"]
[Round "1"]
[White "Zampronha, Wladimir Camilo"]
[Black "Lizak, Peter"]
[Result "0-1"]
[Board "198"]
[TimeControl "180+1"]
[WhiteFideId "2103087"]
[BlackFideId "731595"]
[WhiteElo "2308"]
[BlackElo "2651"]
[WhiteTeam "BRA"]
[BlackTeam "HUN"]
[WhiteClock "0:00:37"]
[BlackClock "0:00:38"]

1. e4 {[%clk 0:03:00]}  e6 {[%clk 0:02:58]} 2. d4 {[%clk 0:02:59]}  d5 {[%clk 0:02:59]} 3. Nc3 {[%clk 0:02:59]}  Bb4 {[%clk 0:02:59]} 4. e5 {[%clk 0:02:59]}  c5 {[%clk 0:02:59]} 5. a3 {[%clk 0:02:59]}  Ba5 {[%clk 0:03:00]} 6. Bd2 {[%clk 0:02:57]}  cxd4 {[%clk 0:02:52]} 7. Nb5 {[%clk 0:02:57]}  Bxd2+ {[%clk 0:02:49]} 8. Qxd2 {[%clk 0:02:57]}  Ne7 {[%clk 0:02:49]} 9. Nd6+ {[%clk 0:02:55]}  Kf8 {[%clk 0:02:49]} 10. Nf3 {[%clk 0:02:49]}  Nbc6 {[%clk 0:02:45]} 11. Nxc8 {[%clk 0:02:44]}  Rxc8 {[%clk 0:02:44]} 12. Bd3 {[%clk 0:02:44]}  Ng6 {[%clk 0:02:34]} 13. Bxg6 {[%clk 0:02:31]}  hxg6 {[%clk 0:02:35]} 14. O-O {[%clk 0:02:30]}  Rh5 {[%clk 0:02:30]} 15. Rfe1 {[%clk 0:02:30]}  Rf5 {[%clk 0:02:22]} 16. Nxd4 {[%clk 0:02:27]}  Nxd4 {[%clk 0:02:20]} 17. Qxd4 {[%clk 0:02:26]}  Rxc2 {[%clk 0:02:14]} 18. Qxa7 {[%clk 0:02:24]}  b6 {[%clk 0:01:17]} 19. Rf1 {[%clk 0:01:36]}  Rxe5 {[%clk 0:01:03]} 20. Rac1 {[%clk 0:01:35]}  Ree2 {[%clk 0:01:02]} 21. Rxc2 {[%clk 0:01:34]}  Rxc2 {[%clk 0:01:02]} 22. b4 {[%clk 0:01:24]}  Kg8 {[%clk 0:01:01]} 23. a4 {[%clk 0:01:17]}  d4 {[%clk 0:00:58]} 24. a5 {[%clk 0:01:17]}  bxa5 {[%clk 0:00:59]} 25. b5 {[%clk 0:01:17]}  Rb2 {[%clk 0:00:51]} 26. Qa6 {[%clk 0:01:09]}  d3 {[%clk 0:00:46]} 27. Rd1 {[%clk 0:01:08]}  Qd4 {[%clk 0:00:42]} 28. Qa8+ {[%clk 0:00:53]}  Kh7 {[%clk 0:00:41]} 29. Qf3 {[%clk 0:00:54]}  Rxb5 {[%clk 0:00:41]} 30. Qxf7 {[%clk 0:00:49]}  Rf5 {[%clk 0:00:39]} 31. Qa7 {[%clk 0:00:37]}  Qxa7 {[%clk 0:00:38]} 0-1